fUST/lending_fUST_20260118
["ID","MTS","AMOUNT","RATE_DAILY","PERIOD"]
[402456991,1768680659624,-500.0,0.00016986,3]
[402456993,1768680659633,-500.0,0.00016986,3]
[402456995,1768680659643,-500.0,0.00016986,3]
[402456997,1768680659652,-500.0,0.00016986,3]
[402456999,1768680659662,-1135.02,0.00016986,3]
[402457001,1768680659671,-500.0,0.00016986,3]
[402457003,1768680659681,-500.0,0.00016986,3]
[402457005,1768680659689,-500.0,0.00016986,3]
[402457006,1768680659698,-1457.74,0.00016986,3]
[402457009,1768680659708,-500.0,0.00016986,3]
[402457010,1768680659717,-500.0,0.00016986,3]
[402457012,1768680659726,-1206.15,0.00016986,3]
[402457014,1768680659736,-638.0,0.00016986,3]
[402457016,1768680659745,-500.0,0.00016986,3]
[402457018,1768680659754,-561.09,0.00016986,3]
[402457020,1768680659762,-500.0,0.00016986,3]
[402457022,1768680659771,-542.03,0.00016986,3]
[402457024,1768680659780,-500.0,0.00016986,3]
[402457026,1768680659790,-500.0,0.00016986,3]
[402457028,1768680659799,-500.0,0.00016986,3]
[402457030,1768680659808,-500.0,0.00016986,3]
[402457032,1768680659817,-500.0,0.00016986,3]
[402457034,1768680659826,-755.07,0.00016986,3]
[402457036,1768680659839,-500.0,0.00016986,3]
[402457038,1768680659848,-500.0,0.00016986,3]
[402457040,1768680659857,-500.0,0.00016986,3]
[402457042,1768680659866,-500.0,0.00016986,3]
[402457044,1768680659877,-500.0,0.00016986,3]
[402457046,1768680659886,-500.0,0.00016986,3]
[402457048,1768680659895,-535.77,0.00016986,3]
[402457050,1768680659906,-655.03,0.00016986,3]
[402457052,1768680659915,-500.0,0.00016986,3]
[402457054,1768680659925,-345.54297394,0.00016986,3]
[402457056,1768680659934,-500.0,0.00016986,3]
[402457058,1768680659944,-584.87,0.00016986,3]
[402457060,1768680659953,-500.0,0.00016986,3]
[402457062,1768680659963,-500.0,0.00016986,3]
[402457064,1768680659972,-500.0,0.00016986,3]
[402457066,1768680659981,-500.0,0.00016986,3]
[402457068,1768680659991,-500.0,0.00016986,3]
[402457070,1768680660000,-1353.4,0.00016986,3]
[402457072,1768680660009,-500.0,0.00016986,3]
[402457074,1768680660019,-1059.76,0.00016986,3]
[402457076,1768680660028,-1200.0,0.00016986,2]
[402457078,1768680660037,-500.0,0.00016986,3]
[402457080,1768680660048,-500.0,0.00016986,3]
[402457082,1768680660058,-500.0,0.00016986,3]
[402457084,1768680660067,-500.0,0.00016986,3]
[402457086,1768680660077,-500.0,0.00016986,3]
[402457088,1768680660086,-500.0,0.00016986,3]
[402457090,1768680660096,-500.0,0.00016986,3]
[402457092,1768680660106,-500.0,0.00016986,3]
[402457094,1768680660115,-580.81,0.00016986,3]
[402457096,1768680660124,-527.76,0.00016986,3]
[402457098,1768680660134,-547.31106992,0.00016986,3]
[402457100,1768680660144,-847.23,0.00016986,3]
[402457102,1768680660153,-500.0,0.00016986,3]
[402457104,1768680660162,-500.0,0.00016986,3]
[402457106,1768680660172,-668.91,0.00016986,3]
[402457108,1768680660182,-500.0,0.00016986,3]
[402457110,1768680660191,-600.65,0.00016986,3]
[402457112,1768680660200,-500.0,0.00016986,3]
[402457114,1768680660210,-500.0,0.00016986,3]
[402457116,1768680660219,-500.0,0.00016986,3]
[402457118,1768680660229,-500.0,0.00016986,3]
[402457120,1768680660238,-500.0,0.00016986,3]
[402457122,1768680660250,-637.05,0.00016986,3]
[402457124,1768680660260,-500.0,0.00016986,3]
[402457126,1768680660269,-500.0,0.00016986,3]
[402457128,1768680660278,-500.0,0.00016986,3]
[402457130,1768680660288,-1055.28,0.00016986,3]
[402457132,1768680660297,-1216.57,0.00016986,3]
[402457134,1768680660307,-517.21,0.00016986,3]
[402457136,1768680660317,-636.97,0.00016986,3]
[402457138,1768680660326,-500.0,0.00016986,3]
[402457140,1768680660336,-500.0,0.00016986,3]
[402457142,1768680660346,-500.0,0.00016986,3]
[402457144,1768680660355,-524.2018677,0.00016986,3]
[402457146,1768680660365,-500.0,0.00016986,3]
[402457148,1768680660374,-614.66,0.00016986,3]
[402457150,1768680660385,-565.35,0.00016986,3]
[402457152,1768680660394,-500.0,0.00016986,3]
[402457154,1768680660404,-500.0,0.00016986,3]
[402457156,1768680660414,-500.0,0.00016986,3]
[402457158,1768680660423,-500.0,0.00016986,3]
[402457160,1768680660433,-500.0,0.00016986,3]
[402457162,1768680660442,-500.0,0.00016986,3]
[402457164,1768680660451,-826.46,0.00016986,3]
[402457166,1768680660461,-500.0,0.00016986,3]
[402457168,1768680660470,-500.0,0.00016986,3]
[402457170,1768680660479,-500.0,0.00016986,3]
[402457172,1768680660488,-500.0,0.00016986,3]
[402457174,1768680660497,-500.0,0.00016986,3]
[402457176,1768680660508,-500.0,0.00016986,3]
[402457178,1768680660517,-880.45,0.00016986,3]
[402457180,1768680660527,-735.0,0.00016986,3]
[402457182,1768680660537,-500.0,0.00016986,3]
[402457184,1768680660546,-1034.05,0.00016986,3]
[402457186,1768680660557,-500.0,0.00016986,3]
[402457188,1768680660567,-500.0,0.00016986,3]
[402457190,1768680660576,-535.81,0.00016986,3]
[402457192,1768680660586,-1027.04,0.00016986,3]
[402457194,1768680660596,-544.8,0.00016986,3]
[402457196,1768680660605,-500.0,0.00016986,3]
[402457198,1768680660615,-500.0,0.00016986,3]
[402457200,1768680660625,-1017.02,0.00016986,3]
[402457202,1768680660634,-500.0,0.00016986,3]
[402457204,1768680660643,-500.0,0.00016986,3]
[402457206,1768680660653,-500.0,0.00016986,3]
[402457208,1768680660662,-500.0,0.00016986,3]
[402457210,1768680660672,-1987.01,0.00016986,3]
[402457212,1768680660681,-500.0,0.00016986,3]
[402457214,1768680660691,-500.0,0.00016986,3]
[402457216,1768680660700,-793.73,0.00016986,3]
[402457218,1768680660710,-500.0,0.00016986,3]
[402457220,1768680660719,-500.0,0.00016986,3]
[402457222,1768680660728,-1079.32,0.00016986,3]
[402457224,1768680660738,-500.0,0.00016986,3]
[402457226,1768680660747,-500.0,0.00016986,3]
[402457228,1768680660756,-500.0,0.00016986,3]
[402457230,1768680660766,-583.68,0.00016986,3]
[402457232,1768680660775,-500.0,0.00016986,3]
[402457234,1768680660785,-562.34469649,0.00016986,3]
[402457235,1768680660794,-500.0,0.00016986,3]
[402457237,1768680660803,-895.32,0.00016986,3]
[402457239,1768680660812,-770.07,0.00016986,3]
[402457241,1768680660822,-500.0,0.00016986,3]
[402457243,1768680660836,-500.0,0.00016986,3]
[402457245,1768680660846,-500.0,0.00016986,3]
[402457247,1768680660855,-667.44,0.00016986,3]
[402457249,1768680660865,-500.0,0.00016986,3]
[402457251,1768680660875,-500.0,0.00016986,3]
[402457253,1768680660885,-344.19716838,0.00016986,3]
[402457255,1768680660894,-500.0,0.00016986,3]
[402457257,1768680660904,-500.0,0.00016986,3]
[402457259,1768680660914,-760.25,0.00016986,3]
[402457261,1768680660923,-500.0,0.00016986,3]
[402457263,1768680660932,-532.59,0.00016986,3]
[402457265,1768680660942,-500.0,0.00016986,3]
[402457267,1768680660951,-500.0,0.00016986,3]
[402457269,1768680660961,-500.0,0.00016986,3]
[402457271,1768680660970,-500.0,0.00016986,3]
[402457273,1768680660979,-555.66,0.00016986,3]
[402457275,1768680660988,-500.0,0.00016986,3]
[402457277,1768680660998,-500.0,0.00016986,3]
[402457279,1768680661007,-500.0,0.00016986,3]
[402457281,1768680661016,-778.89,0.00016986,3]
[402457283,1768680661027,-509.24,0.00016986,3]
[402457285,1768680661036,-500.0,0.00016986,3]
[402457287,1768680661045,-1420.19,0.00016986,3]
[402457288,1768680661056,-297.32226087,0.00016986,3]
[402457290,1768680661065,-951.27,0.00016986,3]
[402457292,1768680661075,-669.06,0.00016986,3]
[402457294,1768680661084,-10906.95,0.00016986,3]
[402457296,1768680661094,-500.0,0.00016986,3]
[402457298,1768680661103,-764.59,0.00016986,3]
[402457300,1768680661112,-596.44715493,0.00016986,3]
[402457302,1768680661122,-500.0,0.00016986,3]
[402457304,1768680661131,-500.0,0.00016986,3]
[402457305,1768680661141,-1161.1,0.00016986,3]
[402457306,1768680661151,-500.0,0.00016986,3]
[402457307,1768680661161,-500.0,0.00016986,3]
[402457308,1768680661170,-632.14,0.00016986,3]
[402457309,1768680661180,-500.0,0.00016986,3]
[402457310,1768680661189,-500.0,0.00016986,3]
[402457311,1768680661199,-500.0,0.00016986,3]
[402457312,1768680661209,-1332.15,0.00016986,3]
[402457313,1768680661218,-883.07,0.00016986,3]
[402457314,1768680661228,-694.52,0.00016986,3]
[402457315,1768680661238,-832.57,0.00016986,3]
[402457316,1768680661247,-500.0,0.00016986,3]
[402457317,1768680661257,-500.0,0.00016986,3]
[402457318,1768680661267,-500.0,0.00016986,3]
[402457319,1768680661276,-1045.91,0.00016986,3]
[402457320,1768680661286,-500.0,0.00016986,3]
[402457321,1768680661296,-726.59,0.00016986,3]
[402457322,1768680661305,-500.0,0.00016986,3]
[402457323,1768680661315,-606.2,0.00016986,3]
[402457324,1768680661324,-500.0,0.00016986,3]
[402457325,1768680661334,-500.0,0.00016986,3]
[402457326,1768680661344,-500.0,0.00016986,3]
[402457327,1768680661353,-500.0,0.00016986,3]
[402457328,1768680661363,-1061.57,0.00016986,3]
[402457329,1768680661373,-500.0,0.00016986,3]
[402457330,1768680661382,-500.0,0.00016986,3]
[402457331,1768680661392,-500.0,0.00016986,3]
[402457332,1768680661402,-500.0,0.00016986,3]
[402457333,1768680661411,-500.0,0.00016986,3]
[402457334,1768680661420,-500.0,0.00016986,3]
[402457335,1768680661428,-500.0,0.00016986,3]
[402457336,1768680661437,-500.0,0.00016986,3]
[402457337,1768680661446,-500.0,0.00016986,3]
[402457338,1768680661456,-500.0,0.00016986,3]
[402457339,1768680661465,-1256.22,0.00016986,3]
[402457340,1768680661475,-500.0,0.00016986,3]
[402457341,1768680661485,-500.0,0.00016986,3]
[402457342,1768680661495,-510.46768292,0.00016986,3]
[402457343,1768680661505,-500.0,0.00016986,3]
[402457344,1768680661514,-500.0,0.00016986,3]
[402457345,1768680661525,-500.0,0.00016986,3]
[402457346,1768680661534,-1057.38,0.00016986,3]
[402457347,1768680661544,-500.0,0.00016986,3]
[402457348,1768680661553,-500.0,0.00016986,3]
[402457349,1768680661563,-500.0,0.00016986,3]
[402457350,1768680661573,-500.0,0.00016986,3]
[402457351,1768680661582,-500.0,0.00016986,3]
[402457352,1768680661591,-500.0,0.00016986,3]
[402457353,1768680661601,-500.0,0.00016986,3]
[402457354,1768680661611,-500.0,0.00016986,3]
[402457355,1768680661620,-1554.16,0.00016986,3]
[402457356,1768680661630,-500.0,0.00016986,3]
[402457357,1768680661639,-505.39,0.00016986,3]
[402457358,1768680661648,-500.0,0.00016986,3]
[402457359,1768680661658,-909.62,0.00016986,3]
[402457360,1768680661667,-500.0,0.00016986,3]
[402457361,1768680661677,-500.0,0.00016986,3]
[402457362,1768680661687,-701.17,0.00016986,3]
[402457363,1768680661697,-999.66,0.00016986,3]
[402457364,1768680661706,-500.0,0.00016986,3]
[402457365,1768680661716,-500.0,0.00016986,3]
[402457366,1768680661725,-500.0,0.00016986,3]
[402457367,1768680661735,-1052.54,0.00016986,3]
[402457368,1768680661745,-776.94,0.00016986,3]
[402457369,1768680661754,-500.0,0.00016986,3]
[402457370,1768680661763,-500.0,0.00016986,3]
[402457371,1768680661773,-965.24,0.00016986,3]
[402457372,1768680661782,-1038.17,0.00016986,3]
[402457373,1768680661792,-500.0,0.00016986,3]
[402457374,1768680661801,-1719.73,0.00016986,3]
[402457375,1768680661811,-1735.2,0.00016986,3]
[402457376,1768680661821,-500.0,0.00016986,3]
[402457377,1768680661833,-500.0,0.00016986,3]
[402457378,1768680661843,-500.0,0.00016986,3]
[402457379,1768680661852,-500.0,0.00016986,3]
[402457380,1768680661863,-809.67,0.00016986,3]
[402457381,1768680661873,-1140.32,0.00016986,3]
[402457382,1768680661883,-500.0,0.00016986,3]
[402457383,1768680661893,-500.0,0.00016986,3]
[402457384,1768680661905,-500.0,0.00016986,3]
[402457385,1768680661915,-643.79,0.00016986,3]
[402457386,1768680661925,-500.0,0.00016986,3]
[402457387,1768680661934,-500.0,0.00016986,3]
[402457388,1768680661944,-500.0,0.00016986,3]
[402457389,1768680661953,-500.0,0.00016986,3]
[402457390,1768680661963,-500.0,0.00016986,3]
[402457391,1768680661972,-1273.89,0.00016986,3]
[402457392,1768680661982,-500.0,0.00016986,3]
[402457393,1768680661991,-631.51,0.00016986,3]
[402457394,1768680662001,-569.38190569,0.00016986,3]
[402457395,1768680662011,-628.87,0.00016986,3]
[402457396,1768680662021,-1510.19,0.00016986,3]
[402457397,1768680662031,-500.0,0.00016986,3]
[402457398,1768680662041,-878.72,0.00016986,3]
[402457399,1768680662051,-500.0,0.00016986,3]
[402457400,1768680662060,-500.0,0.00016986,3]
[402457401,1768680662075,-500.0,0.00016986,3]
[402457402,1768680662094,-500.0,0.00016986,3]
[402457403,1768680662113,-500.0,0.00016986,3]
[402457404,1768680662123,-903.91,0.00016986,3]
[402457405,1768680662132,-500.0,0.00016986,3]
[402457406,1768680662142,-500.0,0.00016986,3]
[402457407,1768680662151,-500.0,0.00016986,3]
[402457408,1768680662161,-500.0,0.00016986,3]
[402457410,1768680662170,-617.76833614,0.00016986,3]
[402457412,1768680662180,-500.0,0.00016986,3]
[402457414,1768680662189,-500.0,0.00016986,3]
[402457416,1768680662198,-500.0,0.00016986,3]
[402457417,1768680662207,-1425.71,0.00016986,3]
[402457418,1768680662216,-500.0,0.00016986,3]
[402457419,1768680662226,-500.0,0.00016986,3]
[402457420,1768680662236,-553.19,0.00016986,3]
[402457421,1768680662246,-500.0,0.00016986,3]
[402457422,1768680662255,-500.0,0.00016986,3]
[402457423,1768680662264,-500.0,0.00016986,3]
[402457424,1768680662273,-500.0,0.00016986,3]
[402457425,1768680662282,-500.0,0.00016986,3]
[402457426,1768680662291,-524.56945144,0.00016986,3]
[402457427,1768680662301,-500.0,0.00016986,3]
[402457428,1768680662311,-500.0,0.00016986,3]
[402457429,1768680662320,-500.0,0.00016986,3]
[402457430,1768680662330,-500.0,0.00016986,3]
[402457431,1768680662340,-500.0,0.00016986,3]
[402457432,1768680662349,-500.0,0.00016986,3]
[402457433,1768680662359,-500.0,0.00016986,3]
[402457434,1768680662369,-500.0,0.00016986,3]
[402457435,1768680662379,-2083.26,0.00016986,3]
[402457436,1768680662389,-500.0,0.00016986,3]
[402457437,1768680662399,-500.0,0.00016986,3]
[402457438,1768680662408,-500.0,0.00016986,3]
[402457439,1768680662418,-500.0,0.00016986,3]
[402457440,1768680662429,-500.0,0.00016986,3]
[402457441,1768680662439,-500.0,0.00016986,3]
[402457442,1768680662449,-1370.45,0.00016986,3]
[402457443,1768680662459,-500.0,0.00016986,3]
[402457444,1768680662468,-658.95,0.00016986,3]
[402457445,1768680662478,-500.0,0.00016986,3]
[402457446,1768680662489,-500.0,0.00016986,3]
[402457447,1768680662498,-500.0,0.00016986,3]
[402457448,1768680662508,-500.0,0.00016986,3]
[402457449,1768680662518,-500.0,0.00016986,3]
[402457450,1768680662528,-609.79,0.00016986,3]
[402457451,1768680662538,-500.0,0.00016986,3]
[402457452,1768680662551,-1222.64,0.00016986,3]
[402457453,1768680662561,-1860.69,0.00016986,3]
[402457454,1768680662570,-500.0,0.00016986,3]
[402457455,1768680662580,-500.0,0.00016986,3]
[402457456,1768680662589,-948.78,0.00016986,3]
[402457457,1768680662599,-500.0,0.00016986,3]
[402457458,1768680662608,-1065.95,0.00016986,3]
[402457459,1768680662618,-500.0,0.00016986,3]
[402457460,1768680662628,-907.15,0.00016986,3]
[402457462,1768680662638,-255.78047731,0.00016986,3]
[402457464,1768680662648,-733.76,0.00016986,3]
[402457466,1768680662658,-500.0,0.00016986,3]
[402457468,1768680662668,-531.61,0.00016986,3]
[402457470,1768680662679,-500.0,0.00016986,3]
[402457471,1768680662689,-500.0,0.00016986,3]
[402457472,1768680662699,-500.0,0.00016986,3]
[402457474,1768680662708,-500.0,0.00016986,3]
[402457475,1768680662718,-500.0,0.00016986,3]
[402457477,1768680662728,-775.8,0.00016986,3]
[402457479,1768680662738,-1570.13,0.00016986,3]
[402457481,1768680662747,-947.9,0.00016986,3]
[402457483,1768680662757,-623.61,0.00016986,3]
[402457485,1768680662767,-500.0,0.00016986,3]
[402457487,1768680662776,-500.0,0.00016986,3]
[402457489,1768680662786,-500.0,0.00016986,3]
[402457491,1768680662796,-500.0,0.00016986,3]
[402457492,1768680662805,-500.0,0.00016986,3]
[402457494,1768680662816,-206.61780172,0.00016986,3]
[402457496,1768680662826,-632.68,0.00016986,3]
[402457498,1768680662840,-500.0,0.00016986,3]
[402457499,1768680662850,-500.0,0.00016986,3]
[402457500,1768680662860,-500.0,0.00016986,3]
[402457502,1768680662871,-1858.88,0.00016986,3]
[402457503,1768680662881,-500.0,0.00016986,3]
[402457504,1768680662891,-6357.57,0.00016986,3]
[402457505,1768680662905,-1319.32,0.00016986,3]
[402457506,1768680662915,-500.0,0.00016986,3]
[402457507,1768680662924,-897.51,0.00016986,3]
[402457508,1768680662935,-601.78,0.00016986,3]
[402457509,1768680662947,-500.0,0.00016986,3]
[402457510,1768680662961,-539.94,0.00016986,3]
[402457511,1768680662971,-677.0,0.00016986,3]
[402457512,1768680662981,-1793.48,0.00016986,3]
[402457513,1768680662990,-1123.25,0.00016986,3]
[402457514,1768680663000,-500.0,0.00016986,3]
[402457515,1768680663010,-500.0,0.00016986,3]
[402457516,1768680663020,-1081.46,0.00016986,3]
[402457517,1768680663030,-500.0,0.00016986,3]
[402457518,1768680663040,-659.73,0.00016986,3]
[402457519,1768680663049,-500.0,0.00016986,3]
[402457520,1768680663059,-500.0,0.00016986,3]
[402457521,1768680663069,-597.06,0.00016986,3]
[402457522,1768680663079,-1335.7,0.00016986,3]
[402457523,1768680663089,-558.42,0.00016986,3]
[402457524,1768680663099,-500.0,0.00016986,3]
[402457525,1768680663109,-566.78,0.00016986,3]
[402457526,1768680663119,-500.0,0.00016986,3]
[402457527,1768680663129,-872.79,0.00016986,3]
[402457528,1768680663139,-688.44,0.00016986,3]
[402457529,1768680663149,-500.0,0.00016986,3]
[402457530,1768680663159,-500.0,0.00016986,3]
[402457531,1768680663170,-500.0,0.00016986,3]
[402457532,1768680663180,-500.0,0.00016986,3]
[402457533,1768680663189,-500.0,0.00016986,3]
[402457534,1768680663199,-500.0,0.00016986,3]
[402457535,1768680663209,-500.0,0.00016986,3]
[402457536,1768680663219,-500.0,0.00016986,3]
[402457537,1768680663229,-500.0,0.00016986,3]
[402457538,1768680663239,-634.82538104,0.00016986,3]
[402457539,1768680663249,-590.26232333,0.00016986,3]
[402457540,1768680663259,-500.0,0.00016986,3]
[402457541,1768680663270,-155.57377074,0.00016986,3]
[402457542,1768680663280,-597.8010965,0.00016986,3]
[402457543,1768680663291,-500.0,0.00016986,3]
[402457544,1768680663301,-500.0,0.00016986,3]
[402457545,1768680663311,-543.38,0.00016986,3]
[402457546,1768680663321,-500.0,0.00016986,3]
[402457547,1768680663331,-500.0,0.00016986,3]
[402457548,1768680663341,-500.0,0.00016986,3]
[402457549,1768680663352,-500.0,0.00016986,3]
[402457550,1768680663362,-500.0,0.00016986,3]
[402457551,1768680663373,-500.0,0.00016986,3]
[402457552,1768680663383,-500.0,0.00016986,3]
[402457553,1768680663394,-500.0,0.00016986,3]
[402457554,1768680663404,-500.0,0.00016986,3]
[402457555,1768680663414,-979.4,0.00016986,3]
[402457556,1768680663424,-2738.98,0.00016986,3]
[402457557,1768680663434,-500.0,0.00016986,3]
[402457558,1768680663444,-500.0,0.00016986,3]
[402457559,1768680663453,-500.0,0.00016986,3]
[402457560,1768680663464,-500.0,0.00016986,3]
[402457561,1768680663473,-500.0,0.00016986,3]
[402457562,1768680663484,-500.0,0.00016986,3]
[402457563,1768680663493,-529.66608909,0.00016986,3]
[402457564,1768680663503,-500.0,0.00016986,3]
[402457565,1768680663513,-1020.99,0.00016986,3]
[402457566,1768680663523,-272.75784748,0.00016986,3]
[402457567,1768680663533,-817.72,0.00016986,3]
[402457568,1768680663543,-500.0,0.00016986,3]
[402457569,1768680663553,-500.0,0.00016986,3]
[402457570,1768680663562,-500.0,0.00016986,3]
[402457571,1768680663573,-606.48,0.00016986,3]
[402457572,1768680663582,-538.58,0.00016986,3]
[402457573,1768680663593,-500.0,0.00016986,3]
[402457574,1768680663602,-500.0,0.00016986,3]
[402457575,1768680663612,-500.0,0.00016986,3]
[402457576,1768680663621,-500.0,0.00016986,3]
[402457577,1768680663631,-158.66112729,0.00016986,3]
[402457578,1768680663640,-647.35,0.00016986,3]
[402457579,1768680663650,-500.0,0.00016986,3]
[402457580,1768680663660,-1443.33,0.00016986,3]
[402457581,1768680663670,-1261.68,0.00016986,3]
[402457582,1768680663680,-500.0,0.00016986,3]
[402457583,1768680663691,-1087.65,0.00016986,3]
[402457584,1768680663701,-547.25,0.00016986,3]
[402457585,1768680663710,-500.0,0.00016986,3]
[402457586,1768680663720,-500.0,0.00016986,3]
[402457587,1768680663730,-1265.32,0.00016986,3]
[402457588,1768680663740,-500.0,0.00016986,3]
[402457589,1768680663750,-1310.48,0.00016986,3]
[402457590,1768680663759,-1112.25,0.00016986,3]
[402457591,1768680663769,-500.0,0.00016986,3]
[402457592,1768680663779,-500.0,0.00016986,3]
[402457593,1768680663789,-2390.17,0.00016986,3]
[402457594,1768680663799,-500.0,0.00016986,3]
[402457595,1768680663809,-500.0,0.00016986,3]
[402457596,1768680663819,-500.0,0.00016986,3]
[402457597,1768680663831,-500.0,0.00016986,3]
[402457598,1768680663841,-500.0,0.00016986,3]
[402457599,1768680663851,-500.0,0.00016986,3]
[402457600,1768680663860,-500.0,0.00016986,3]
[402457601,1768680663871,-500.0,0.00016986,3]
[402457602,1768680663881,-500.0,0.00016986,3]
[402457603,1768680663892,-582.1,0.00016986,3]
[402457604,1768680663904,-500.0,0.00016986,3]
[402457605,1768680663914,-932.84,0.00016986,3]
[402457606,1768680663924,-725.5,0.00016986,3]
[402457607,1768680663935,-500.0,0.00016986,3]
[402457608,1768680663945,-500.0,0.00016986,3]
[402457609,1768680663955,-500.0,0.00016986,3]
[402457611,1768680663965,-500.0,0.00016986,3]
[402457613,1768680663975,-500.0,0.00016986,3]
[402457615,1768680663985,-500.0,0.00016986,2]
[402457617,1768680663995,-500.0,0.00016986,3]
[402457619,1768680664005,-500.0,0.00016986,3]
[402457621,1768680664015,-500.0,0.00016986,2]
[402457623,1768680664025,-500.0,0.00016986,2]
[402457626,1768680664035,-500.0,0.00016986,3]
[402457628,1768680664046,-500.0,0.00016986,3]
[402457630,1768680664056,-500.0,0.00016986,3]
[402457631,1768680664066,-500.0,0.00016986,3]
[402457632,1768680664076,-500.0,0.00016986,3]
[402457633,1768680664086,-500.0,0.00016986,3]
[402457635,1768680664097,-500.0,0.00016986,3]
[402457637,1768680664107,-500.0,0.00016986,3]
[402457639,1768680664117,-510.09347373,0.00016986,3]
[402457641,1768680664127,-224.22753916,0.00016986,3]
[402457644,1768680664138,-500.0,0.00016986,3]
[402457646,1768680664148,-500.0,0.00016986,2]
[402457647,1768680664158,-500.0,0.00016986,3]
[402457650,1768680664168,-1018.98,0.00016986,3]
[402457652,1768680664177,-500.0,0.00016986,3]
[402457654,1768680664187,-500.0,0.00016986,3]
[402457655,1768680664197,-968.96,0.00016986,3]
[402457657,1768680664208,-570.16,0.00016986,3]
[402457659,1768680664218,-500.0,0.00016986,3]
[402457661,1768680664228,-500.0,0.00016986,3]
[402457663,1768680664238,-500.0,0.00016986,3]
[402457665,1768680664247,-500.0,0.00016986,3]
[402457667,1768680664257,-511.95572068,0.00016986,3]
[402457668,1768680664266,-500.0,0.00016986,3]
[402457669,1768680664276,-817.35,0.00016986,3]
[402457670,1768680664285,-500.0,0.00016986,3]
[402457671,1768680664295,-2319.11,0.00016986,3]
[402457672,1768680664304,-500.0,0.00016986,3]
[402457673,1768680664314,-809.91,0.00016986,3]
[402457674,1768680664323,-552.32,0.00016986,3]
[402457675,1768680664333,-1146.04,0.00016986,3]
[402457676,1768680664343,-500.0,0.00016986,3]
[402457677,1768680664353,-500.0,0.00016986,2]
[402457678,1768680664362,-1004.21199472,0.00016986,2]
[402457679,1768680664372,-1367.0,0.0001704,2]
[402457680,1768680664382,-629.0,0.0001704,2]
[402457681,1768680664392,-2147.0,0.0001704,2]
[402457682,1768680664401,-715.0,0.00017053,2]
[402457683,1768680664411,-199.164,0.00017053,2]
[402457684,1768680664421,-417.0,0.00017053,2]
[402457685,1768680664430,-417.0,0.00017053,2]
[402457686,1768680664440,-151.0,0.00017134,2]
[402457687,1768680664450,-151.0,0.00017134,2]
[402457688,1768680664459,-151.0,0.00017134,2]
[402457689,1768680664469,-151.0,0.00017134,2]
[402457690,1768680664479,-5888.0,0.00017134,2]
[402457691,1768680664490,-250.0,0.00017229,2]
[402457692,1768680664499,-212.54773642,0.00017259,2]
[402457693,1768680664509,-500.0,0.0001726,3]
[402457694,1768680664519,-702.73,0.0001726,3]
[402457695,1768680664528,-500.0,0.0001726,3]